Cogmind - Beta 15 @@@ ROGUE MODE // 2025.05.10 @ 09:38:14 Player: rekpake Result: Core destroyed Performance ------------- Evolutions (1) 500 Regions Visited (3) 600 Robots Destroyed (39) 195 Value Destroyed (937) 937 Prototype IDs (3) 60 Alien Tech Used (0) 0 Bonus (0) 0 TOTAL SCORE: 2292 Bonus ------- None Cogmind --------- Core Integrity 0/400 Matter 209/300 Energy 79/125 System Corruption 0% Temperature Critical (614) Movement Flying (34) Location -9/Storage Parts ------- > --- POWER (2) -------- Light Ion Engine > --- PROPULSION (3) --- Improved Flight Unit Improved Flight Unit Improved Flight Unit > --- UTILITY (2) ------ Weight Redist. System > --- WEAPON (2) ------- Advanced Beam Cannon Heavy Assault Rifle > --- INVENTORY (5) ---- Improved Flight Unit Sensor Array Hacking Suite Advanced Beam Cannon Datajack Peak State ------------ > --- POWER ------------ Ion Engine Light Ion Engine > --- PROPULSION ------- Improved Flight Unit Improved Flight Unit Improved Flight Unit > --- UTILITY ---------- Small Storage Unit Weight Redist. System > --- WEAPON ----------- Advanced Beam Cannon Advanced Beam Cannon > --- INVENTORY -------- Improved Flight Unit Hacking Suite Light EM Pulse Cannon Heavy Assault Rifle Autogun Improved Assault Rifle Datajack [Rating: 21] Favorites ----------- Power Light Ion Engine Engine Light Ion Engine Propulsion Hover Unit Leg Aluminum Leg Wheel Compact Wheel Hover Unit Hover Unit Flight Unit Improved Flight Unit Utility Small Storage Unit Device Weight Redist. System Storage Small Storage Unit Protection Core Shielding Weapon Light Assault Rifle Energy Gun EM Pulse Gun Energy Cannon Advanced Beam Cannon Ballistic Gun Light Assault Rifle Build | -11 -10 -9 -9 ------- Run | Yrd Mat Mat Sto Slots Evolved 2 | . . 2 . Power 1 | . . 1 . Propulsion 1 | . . 1 . Utility . | . . . . Weapon . | . . . . Parts Attached 39 | 6 14 17 2 Power 10 | 1 4 3 2 Engine 10 | 1 4 3 2 Core . | . . . . Reactor . | . . . . Propulsion 13 | 2 4 7 . Treads . | . . . . Leg 3 | . . 3 . Wheel 2 | 2 . . . Hover 3 | . 2 1 . Flight 5 | . 2 3 . Utility 6 | 1 4 1 . Device 1 | . . 1 . Storage 3 | 1 2 . . Processor . | . . . . Hackware . | . . . . Protection 2 | . 2 . . Artifact . | . . . . Weapon 10 | 2 2 6 . Energy Gun 1 | 1 . . . Energy Cannon 3 | . . 3 . Ballistic Gun 6 | 1 2 3 . Ballistic Cannon . | . . . . Launcher . | . . . . Special Weapon . | . . . . Impact Weapon . | . . . . Slashing Weapon . | . . . . Piercing Weapon . | . . . . Special Melee Weapon . | . . . . Unidentified Prototypes 3 | . . 3 . Parts Lost 17 | . 3 10 4 Power 7 | . 1 3 3 Propulsion 4 | . 1 3 . Utility 2 | . . 1 1 Weapon 4 | . 1 3 . Highest Loss Streak 8 | . 3 8 4 To Critical Strikes . | . . . . Average Backups 5 | . 3 6 7 Power . | . . . . Propulsion 1 | . . 1 1 Utility 1 | . 1 1 2 Weapon 1 | . . 2 3 Tool/Special . | . . . . Unused Backups 10 | . . 3 7 Power . | . . . . Propulsion 3 | . . 2 1 Utility 3 | . . . 3 Weapon 3 | . . 1 2 Tool/Special 1 | . . . 1 Average Slot Usage (%) 82 | . 85 77 95 Engine 13 | . 11 14 17 Leg 2 | . . 4 . Wheel 7 | . 16 . . Hover 9 | . 7 14 . Flight 7 | . 3 5 33 Device 1 | . . 1 11 Storage 12 | . 14 11 11 Protection 5 | . 4 7 . Energy Gun 3 | . 7 . . Energy Cannon 4 | . . 5 21 Ballistic Gun 14 | . 17 14 . Peak Build Rating 21 | 6 7 21 21 Average Rating 9 | 4 6 10 20 On Entrance 8 | . 6 7 21 Naked Turns . | . . . . Heaviest Build 21 | 12 15 21 21 Greatest Support 32 | 32 32 30 21 Greatest Overweight (x) 3 | . 2 3 . Average Overweight (x) . | . . . . Largest Inventory Capacity 25 | 8 25 8 8 Average Capacity 8 | 7 8 8 7 Most Carried 8 | . 8 8 8 Average Carried 5 | . 4 6 7 Final Capacity 8 | 8 8 8 5 Final Carried 7 | . 7 7 5 Class Distribution -------------------- 59% | Mutant 40% | Scavenger-Mutant Dominant Class ---------------- Mutant | -10/Materials Scavenger-Mutant | -9/Materials Mutant | -9/Storage Resources | -11 -10 -9 -9 ----------- Run | Yrd Mat Mat Sto Matter Collected 873 | 157 376 316 24 Remotely . | . . . . Salvage Created 1416 | . 454 776 186 Parts 105 | . 33 47 25 Haulers Intercepted 4 | . 2 2 . Recyclers Shooed 2 | . . 2 . Parts Field Recycled . | . . . . Retrieved Matter . | . . . . Parts Self-Destructed . | . . . . Prevented . | . . . . Kills | -11 -10 -9 -9 ------- Run | Yrd Mat Mat Sto Combat Hostiles Destroyed 25 | . 8 11 6 Guns 16 | . 8 8 . Cannons 9 | . . 3 6 Classes Destroyed 8 | . 7 1 . Worker 2 | . 1 1 . Hauler 4 | . 2 2 . Recycler 2 | . 1 1 . Operator 1 | . 1 . . Watcher 5 | . 3 2 . Swarmer 10 | . 6 . 4 Grunt 9 | . 2 7 . Sentry 6 | . . 4 2 Best Kill Streak 6 | . 4 6 4 Combat Bots Only 6 | . 3 6 4 Max Kills in Single Turn 2 | . 2 2 1 Gunslinging 1 | . . 1 . Exploded . | . . . . Melee . | . . . . Uniques/NPCs Destroyed . | . . . . Combat | -11 -10 -9 -9 -------- Run | Yrd Mat Mat Sto Hostile Shots Fired 222 | . 36 134 52 Missed 68 | . 9 46 13 Hits 154 | . 27 88 39 Projectile 154 | . 27 88 39 Critical Strikes 7 | . . 5 2 Actively Blocked 2 | . . 2 . Damage Taken 1882 | . 271 1117 494 Core 487 | . 36 298 153 Absorbed by Shields . | . . . . Redirected to Shielding 51 | . . 51 . Regen/Repaired (Parts) 44 | . . . 44 Core Remaining (%) 92 | 100 85 . . Volleys Fired 101 | . 42 47 12 Largest 2 | . 2 2 2 Hottest 136 | . 60 136 136 Shots Fired 183 | . 68 92 23 Gun 147 | . 68 77 2 Cannon 36 | . . 15 21 Launcher . | . . . . Special . | . . . . Kinetic 122 | . 43 77 2 Thermal 27 | . . 6 21 Explosive . | . . . . Electromagnetic 34 | . 25 9 . Robot Hit Streak 9 | . 4 9 5 Robot Miss Streak 5 | . 3 5 5 Penetration Max . | . . . . Secondary Targets 3 | . . 3 . Max Gunslinging Chain 1 | . . 1 . Shots Hit Robots 98 | . 34 54 10 Core Hits 58 | . 20 31 7 Critical Kills 1 | . 1 . . Critical Parts Destroyed . | . . . . Critical Strikes 1 | . 1 . . Destroy 1 | . 1 . . Melee Attacks . | . . . . Impact . | . . . . Slashing . | . . . . Piercing . | . . . . Sneak Attacks . | . . . . Combat Hostiles . | . . . . Follow-up Attacks . | . . . . Damage Inflicted 1637 | . 534 859 244 Guns 1112 | . 473 621 18 Cannons 430 | . . 204 226 Explosions 95 | . 61 34 . Melee . | . . . . Ramming . | . . . . Kinetic 923 | . 284 621 18 Thermal 361 | . 61 74 226 Explosive . | . . . . Electromagnetic 353 | . 189 164 . Impact . | . . . . Slashing . | . . . . Piercing . | . . . . Highest Corruption . | . . . . Average Corruption . | . . . . Corruption Purged . | . . . . Corruption Blocked . | . . . . Overload Shots . | . . . . Overflow Damage 14 | . . 14 . Projectiles 10 | . . 10 . Explosions 4 | . . 4 . Melee . | . . . . Knockbacks . | . . . . Impact . | . . . . Kinetic . | . . . . Secondary . | . . . . Self-Inflicted Damage 31 | . 31 . . Shots 1 | . 1 . . Rammed . | . . . . Targets Rammed . | . . . . Kicked . | . . . . Crushed . | . . . . Highest Temperature 629 | . 81 225 629 Average Temperature 105 | . 26 69 215 Received Heat Transfer 786 | . 30 603 153 Effects 14 | . . . 14 Shutdowns 3 | . . . 3 Energy Bleed 1 | . . . 1 Matter Decay 2 | . . . 2 Short Circuit 2 | . . . 2 Damage (minor) 2 | . . . 2 Damage (major) 3 | . . . 3 Damage (core) 1 | . . . 1 Siege Activations . | . . . . Martial Activations . | . . . . Shielding Activations . | . . . . Robots Disrupted . | . . . . Combat Hostiles . | . . . . Robots Corrupted . | . . . . Combat Hostiles . | . . . . Parts Fried . | . . . . Impact Corruptions . | . . . . Robots Melted . | . . . . Combat Hostiles . | . . . . Parts Melted 1 | . . 1 . Heat Transferred 611 | . 100 124 387 Parts Sabotaged . | . . . . Parts Stolen . | . . . . Parts Stripped . | . . . . Power Chain Reactions 2 | . 1 1 . Alert | -11 -10 -9 -9 ------- Run | Yrd Mat Mat Sto Maximum Alert Level 1 | . . . 1 Low Security (%) 95 | 100 100 100 60 Level 1 4 | . . . 39 Level 2 . | . . . . Level 3 . | . . . . Level 4 . | . . . . Level 5 . | . . . . High Security . | . . . . Max Security . | . . . . Peak Influence 353 | . 116 196 353 Initial 79 | . . 13 79 Average 69 | . 46 74 166 Influence Increases 1048 | . 269 455 324 Destroy 0b10 Robot/C 500 | . 160 220 120 Destroy 0b10 Robot/NC 70 | . 40 30 . Destroy Leader 128 | . 30 68 30 Successful Hack 13 | . 4 . 9 Disable Machine 45 | . . 30 15 Anti-Garrison Action 150 | . . . 150 Destroy Structure 7 | . 5 2 . Lose Combat Pursuer 135 | . 30 105 . Influence Decreases 745 | . 237 299 209 Entered New Map 128 | . . 19 109 Time Decay 468 | . 207 201 60 Lost Part 149 | . 30 79 40 Squads Dispatched 4 | . . 2 2 Investigation 1 | . . 1 . Extermination . | . . . . Reinforcement 1 | . . 1 . Assault 2 | . . . 2 Garrison . | . . . . Intercept . | . . . . Searches Triggered . | . . . . Construction Impeded . | . . . . Haulers Reinforced . | . . . . Active Scanning Responses . | . . . . Cargo Convoy Interrupts . | . . . . Stealth | -11 -10 -9 -9 --------- Run | Yrd Mat Mat Sto Distress Signals 2 | . . 2 . Communications Jammed . | . . . . Distress Signals . | . . . . Times Spotted 50 | . 16 23 11 Peak Tracking Total 10 | . 4 7 10 Tactical Retreats 4 | . 1 3 . Traps | -11 -10 -9 -9 ------- Run | Yrd Mat Mat Sto Traps Triggered 1 | . . . 1 Indirectly . | . . . . Trap Hack Attempts . | . . . . Triggered . | . . . . Disarmed . | . . . . Reprogrammed . | . . . . Reused . | . . . . Traps Extracted . | . . . . Installed . | . . . . Triggered . | . . . . Machines | -11 -10 -9 -9 ---------- Run | Yrd Mat Mat Sto Machines Disabled 4 | . . 2 2 Max in Single Turn 1 | . . 1 1 Garrison Access 1 | . . . 1 Machines Repaired . | . . . . Machines Dismantled . | . . . . Machines Sabotaged . | . . . . Overloaded Fab Kills . | . . . . Hacking | -11 -10 -9 -9 --------- Run | Yrd Mat Mat Sto Machines Accessed 8 | . 3 1 4 Terminals 7 | . 3 1 3 Fabricators . | . . . . Repair Stations 1 | . . . 1 Recycling Units . | . . . . Scanalyzers . | . . . . Garrison Access . | . . . . Total Hacks 30 | . 14 2 14 Successful 15 | . 8 . 7 Failed 15 | . 6 2 7 Catastrophic 2 | . . 1 1 Database Lockouts . | . . . . Manual 2 | . 2 . . Terminals 28 | . 14 2 12 Fabricators . | . . . . Repair Stations 2 | . . . 2 Recycling Units . | . . . . Scanalyzers . | . . . . Garrison Access . | . . . . Terminal Hacks 13 | . 8 . 5 Record 7 | . 5 . 2 Alert Level 2 | . 1 . 1 Dispatch Records 1 | . 1 . . Maintenance Status 1 | . 1 . . Recall Extermination 1 | . . . 1 Zone Layout 1 | . . . 1 Fabricator Hacks . | . . . . Repair Station Hacks 2 | . . . 2 Scan Component 1 | . . . 1 Repair 1 | . . . 1 Recycling Unit Hacks . | . . . . Scanalyzer . | . . . . Garrison Access Hacks . | . . . . Unauthorized Hacks . | . . . . Terminals . | . . . . Fabricators . | . . . . Repair Stations . | . . . . Recycling Units . | . . . . Scanalyzers . | . . . . Garrison Access . | . . . . Data Cores Recovered 1 | . 1 . . Used . | . . . . Hacking Detections 6 | . 2 1 3 Full Trace Events 1 | . . 1 . Feedback Events . | . . . . Feedback Blocked . | . . . . Robot Schematics Acquired . | . . . . Robots Built . | . . . . Authchips . | . . . . Time . | . . . . Total Robot Build Rating . | . . . . Part Schematics Acquired . | . . . . Parts Built . | . . . . Authchips . | . . . . Time . | . . . . Total Part Build Rating . | . . . . Parts Repaired 1 | . . . 1 Time 26 | . . . 26 Parts Recycled . | . . . . Recycled Matter . | . . . . Retrieved Matter . | . . . . Retrieved Components . | . . . . Parts Scanalyzed . | . . . . Part Schematics Acquired . | . . . . Parts Damaged . | . . . . Bothacking | -11 -10 -9 -9 ------------ Run | Yrd Mat Mat Sto Used RIF Installer . | . . . . Robots Hacked . | . . . . Non-combat . | . . . . Combat . | . . . . Robot Hacks Applied . | . . . . Relay Couplers Released 2 | . . . 2 Machine Destruction 2 | . . . 2 Fabnet Peak Effective % . | . . . . Robots Rewired . | . . . . Allies Hacked . | . . . . Hacks Repelled . | . . . . Allies | -11 -10 -9 -9 -------- Run | Yrd Mat Mat Sto Total Allies . | . . . . Largest Group . | . . . . Highest-Rated Group . | . . . . Highest-Rated Ally . | . . . . Total Orders . | . . . . Ally Attacks . | . . . . Total Damage . | . . . . Kills . | . . . . Allies Corrupted . | . . . . Allies Melted . | . . . . Intel | -11 -10 -9 -9 ------- Run | Yrd Mat Mat Sto Active Infowar (turns) . | . . . . Robot Analysis Total . | . . . . Derelict Logs Recovered . | . . . . Drone Launches . | . . . . Drone Recoveries . | . . . . Exploration | -11 -10 -9 -9 ------------- Run | Yrd Mat Mat Sto Turns Passed 1227 | 38 509 551 129 Spaces Moved 1269 | 31 504 576 158 Core 52 | 3 1 48 . Treads . | . . . . Legs 34 | . . 34 . Wheels 224 | 28 196 . . Hover 563 | . 213 350 . Flight 396 | . 94 144 158 Fastest Speed 34 | 50 37 34 34 Average Speed 61 | 95 69 60 34 Slowest Speed 250 | 100 150 250 34 Overloaded Moves . | . . . . Propulsion Burnouts . | . . . . Robots Hopped 2 | . . 2 . Potential Cave-ins . | . . . . Cave-ins Triggered . | . . . . Exploration Rate (%) 32 | 3 59 35 32 Regions Visited 3 Branch Regions 1 Pre-discovered Areas . | . . . . Known Exits Taken . | . . . . Unknown Exits Taken 3 | 1 1 1 . Scrap Searched . | . . . . Spaces Dug . | . . . . Terrain Destroyed 4 | . 3 1 . Melee . | . . . . Projectile . | . . . . AOE 4 | . 3 1 . Terrain Rammed . | . . . . Walls Destroyed . | . . . . Machines Disabled . | . . . . Actions | -11 -10 -9 -9 --------- Run | Yrd Mat Mat Sto Total 1534 | 36 594 695 209 Wait 49 | . 6 27 16 Move 1262 | 30 503 571 158 Hop 2 | . . 2 . Pick Up 22 | . 7 14 1 Fast Attach 33 | 6 12 12 3 Attach 7 | . 2 5 . Detach 11 | . 9 2 . Swap 5 | . 3 1 1 Drop 24 | . 10 14 . Fire 101 | . 42 47 12 Melee . | . . . . Ram . | . . . . Kick . | . . . . Crush . | . . . . Escape Stasis 18 | . . . 18 Rewire . | . . . . Trap . | . . . . Miscellaneous . | . . . . Route ------- -11/Scrapyard -10/Materials (discovered 3 exits: *Mat x2 / [*Min]) -9/Materials -9/Storage History --------- Turn | Location | Event 15 | -11/Scrapyard | Discovered new exit (range 16) 39 | -11/Scrapyard | Entered Materials 182 | -10/Materials | Discovered new exit (range 14) 310 | -10/Materials | Build established: Mutant 356 | -10/Materials | Discovered new exit (range 16) 364 | -10/Materials | Lost 3 parts (1p1n1w) 473 | -10/Materials | Discovered new exit (range 7) 548 | -10/Materials | Entered another Materials area 548 | -9/Materials | Evolved 2 slots: Power x1, Propulsion x1 616 | -9/Materials | Discovered new exit (range 12) 705 | -9/Materials | Build established: Scavenger-Mutant 874 | -9/Materials | Lost 8 parts (3p3n2w) 891 | -9/Materials | Core integrity fell below 50% 1099 | -9/Materials | Entered Storage 1132 | -9/Storage | Repaired Ion Engine 1213 | -9/Storage | Core integrity fell below 20% 1229 | -9/Storage | Core destroyed Last Messages --------------- 01214_ Overheating: Short circuit. 01216_ Power failure, Ion Engine shutdown. 01218_ Overheating: Matter decay (-60). 01219_ Overheating: Energy bleed (-54). 01219_ Ion Engine destroyed. 01220_ Overheating: Sml. Storage Unit damaged (-9). 01221_ Critical hit (Burn: +37). 01222_ Overheating: Imp. Flight Unit damaged (-15). 01222_ Overheating: Sml. Storage Unit damaged (-11). 01222_ Overheating: Broken Weight Redist. System damaged (-14). 01222_ Acquired Lgt. Ion Engine. 01223_ Power failure, Lgt. Ion Engine shutdown. 01223_ Sml. Storage Unit destroyed. 01223_ Acquired 14 matter. 01224_ Overheating: Matter decay (-24). 01224_ Acquired Lgt. Ion Engine. 01225_ Power failure, Lgt. Ion Engine shutdown. 01225_ Overheating: Lgt. Ion Engine damaged (-22). 01227_ Lgt. Ion Engine destroyed. 01229_ Overheating: Core damaged (-56). Map ----- +----------------------------------------------------+ | ???????????????????????????????????????? | | ???????????????????????????????????????? | | ???????????????????????????????????????? | | ???????????????????????????????????????? | | ???????????????????????????????????????? | | ???????????????????????????????????????? | | ???????????????????????????????????????? | | ???????????????????????????????????????? | | ???????????????????????????????????????? | | ???????????????????????????????????????? | | ???????????????????????????????????????? | | ???????????????????????????????????????? | | ???????????????????????????????????????? | | ??????# ???????????????????????????????? | | ??????+ ??????????????????????????????? | | ??????# %#########################+#### | | ??????# | | ??????# | | ??????# | | ????????#######+##g######+##+####???# | | ????????# *%] g # #????# | | ????????# *[%=[g # #????# | | ????????# =%=[ b # """" #????# | | ????????# =[=[ # ""????#????# | | ????????# # ""???? #????# | | ????????# @ # "????" #????# | | ????????########Y###### "???" #????# | | ???????????????? #????# """" #????# | | ???????????????? #????# #???## | | ???????????????# ##########+######## | | ???????????????# | | ???????????????+ %! | | ???????????????# ! | | ???????????????###+#/#########+##### | | ?????????????????? ?????# ##### | | ????????????????" ???????# """ T#??? | | ?????????????????????????#[ """ ###?? | | ?????????????????????????#=!*! """ ""#?? | | ?????????????????????????#% !" Y"#?? | | ?????????????????????????#["G" ""#?? | | ?????????????????????????#!""" ###?? | | ?????????????????????????# #???? | | ?????????????????????????# #"T"#####???? | | ?????????????????????????#######???????? | | ???????????????????????????????????????? | | ???????????????????????????????????????? | | ???????????????????????????????????????? | | ???????????????????????????????????????? | | ???????????????????????????????????????? | | ???????????????????????????????????????? | +----------------------------------------------------+ Best States ------------- Heat Dissipation 28 Energy Generation 15 Energy Capacity 275 Matter Stores 300 Matter Capacity 300 Sight Range 16 Terrain Scan Density 10 Additional Mass Support 6 Armor Coverage 150 Core Shielding 20 Evasion (%) 63 Item Schematics ----------------- None Robot Schematics ------------------ None Fabricated ------------ Nothing Repaired ---------- Ion Engine | 26% | -9/Storage Alien Tech Used ----------------- None Achievements -------------- None Challenges ------------ None Game ------ Seed ShrapnelAuthchipGreatsword Manual? 0 Play Time 00:48:07 Cumulative 22.1 hours Start 2025.05.06 @ 22:35:28 End 2025.05.10 @ 09:38:14 Sessions 3 Manual Loads 0 Difficulty Rogue Special Mode None Game No. 22 Rogue 22 Adventurer 0 Explorer 0 Win Type - Total 0 Types 0/0/0/0/0/0/0/0/0/0 Lore% 10 Gallery% 18 Achievement% 21 Wizard Run 0 Options --------- Layout 1 ASCII 0 Keyboard 0 Movement Mouse Keybinds 0 Fullscreen 1 Font 32/SmallcapsGlow Map View 77x35 Zoom Use 0% Tactical HUD 1 Map Filters NONE Filters NONE Steam 1 RUN: 48db17f4-9f76-4c6f-95a9-588f876823e2